Department Family,Entity,Date of Payment,Expense Type,Expense Area,Supplier,Transaction Number,Amount in Sterling, Line description
ECGD,ECGD,16 Jun 22,Home Travel /Subsistence,Risk Approval Division,Agiito Limited formrly Capita Travel,         190,"-3,625.86",Business Travel
ECGD,ECGD,16 Jun 22,Home Travel /Subsistence,Business Group _ Main,Agiito Limited formrly Capita Travel,         190,-157.15,Business Travel
ECGD,ECGD,16 Jun 22,Home Travel /Subsistence,Business Group _ Main,Agiito Limited formrly Capita Travel,         190,10.30,Business Travel
ECGD,ECGD,16 Jun 22,Home Travel /Subsistence,Business Group _ Main,Agiito Limited formrly Capita Travel,         190,13.95,Business Travel
ECGD,ECGD,16 Jun 22,Home Travel /Subsistence,Business Group _ Main,Agiito Limited formrly Capita Travel,         190,13.95,Business Travel
ECGD,ECGD,16 Jun 22,Home Travel /Subsistence,Business Group _ Main,Agiito Limited formrly Capita Travel,         190,20.90,Business Travel
ECGD,ECGD,16 Jun 22,Home Travel /Subsistence,SPoCC,Agiito Limited formrly Capita Travel,         190,21.30,Business Travel
ECGD,ECGD,16 Jun 22,Home Travel /Subsistence,LD,Agiito Limited formrly Capita Travel,         190,22.90,Business Travel
ECGD,ECGD,16 Jun 22,Home Travel /Subsistence,SPoCC,Agiito Limited formrly Capita Travel,         190,27.30,Business Travel
ECGD,ECGD,16 Jun 22,Home Travel /Subsistence,Business Group _ Main,Agiito Limited formrly Capita Travel,         190,32.70,Business Travel
ECGD,ECGD,16 Jun 22,Home Travel /Subsistence,Business Group _ Main,Agiito Limited formrly Capita Travel,         190,33.50,Business Travel
ECGD,ECGD,16 Jun 22,Home Travel /Subsistence,OCCMC,Agiito Limited formrly Capita Travel,         190,37.95,Business Travel
ECGD,ECGD,16 Jun 22,Home Travel /Subsistence,OCCMC,Agiito Limited formrly Capita Travel,         190,59.30,Business Travel
ECGD,ECGD,16 Jun 22,Home Travel /Subsistence,Business Group _ Main,Agiito Limited formrly Capita Travel,         190,62.60,Business Travel
ECGD,ECGD,16 Jun 22,Home Travel /Subsistence,Business Group _ Main,Agiito Limited formrly Capita Travel,         190,65.95,Business Travel
ECGD,ECGD,16 Jun 22,Home Travel /Subsistence,Business Group _ Main,Agiito Limited formrly Capita Travel,         190,69.40,Business Travel
ECGD,ECGD,16 Jun 22,Home Travel /Subsistence,OCCMC,Agiito Limited formrly Capita Travel,         190,69.50,Business Travel
ECGD,ECGD,16 Jun 22,Home Travel /Subsistence,OCCMC,Agiito Limited formrly Capita Travel,         190,70.10,Business Travel
ECGD,ECGD,16 Jun 22,Home Travel /Subsistence,OCCMC,Agiito Limited formrly Capita Travel,         190,111.50,Business Travel
ECGD,ECGD,16 Jun 22,Home Travel /Subsistence,OCCMC,Agiito Limited formrly Capita Travel,         190,131.70,Business Travel
ECGD,ECGD,16 Jun 22,Home Travel /Subsistence,OCCMC,Agiito Limited formrly Capita Travel,         190,191.80,Business Travel
ECGD,ECGD,16 Jun 22,Home Travel /Subsistence,OCCMC,Agiito Limited formrly Capita Travel,         190,197.52,Business Travel
ECGD,ECGD,16 Jun 22,Home Travel /Subsistence,OCCMC,Agiito Limited formrly Capita Travel,         190,197.52,Business Travel
ECGD,ECGD,16 Jun 22,Home Travel /Subsistence,Business Group _ Main,Agiito Limited formrly Capita Travel,         190,408.53,Business Travel
ECGD,ECGD,16 Jun 22,Home Travel /Subsistence,Risk Approval Division,Agiito Limited formrly Capita Travel,         190,"1,852.16",Business Travel
ECGD,ECGD,16 Jun 22,Home Travel /Subsistence,Business Group _ Main,Agiito Limited formrly Capita Travel,         190,"2,627.99",Business Travel
ECGD,ECGD,16 Jun 22,Home Travel /Subsistence,Business Group _ Main,Agiito Limited formrly Capita Travel,         190,"2,627.99",Business Travel
ECGD,ECGD,16 Jun 22,Home Travel /Subsistence,SPoCC,Agiito Limited formrly Capita Travel,         190,"2,766.30",Business Travel
ECGD,ECGD,16 Jun 22,Home Travel /Subsistence,Risk Approval Division,Agiito Limited formrly Capita Travel,         190,"3,640.42",Business Travel
ECGD,ECGD,16 Jun 22,Home Travel /Subsistence,SPoCC,Agiito Limited formrly Capita Travel,         190,56.80,Business Travel
ECGD,ECGD,16 Jun 22,Home Travel /Subsistence,SPoCC,Agiito Limited formrly Capita Travel,         190,136.30,Business Travel
ECGD,ECGD,16 Jun 22,Home Travel /Subsistence,Business Group _ Main,Agiito Limited formrly Capita Travel,         190,-10.90,Business Travel
ECGD,ECGD,16 Jun 22,Home Travel /Subsistence,Business Group _ Main,Agiito Limited formrly Capita Travel,         190,10.00,Business Travel
ECGD,ECGD,16 Jun 22,Home Travel /Subsistence,Business Group _ Main,Agiito Limited formrly Capita Travel,         190,19.40,Business Travel
ECGD,ECGD,16 Jun 22,Home Travel /Subsistence,LD,Agiito Limited formrly Capita Travel,         190,27.00,Business Travel
ECGD,ECGD,16 Jun 22,Home Travel /Subsistence,Business Group _ Main,Agiito Limited formrly Capita Travel,         190,33.50,Business Travel
ECGD,ECGD,16 Jun 22,Home Travel /Subsistence,Risk Approval Division,Agiito Limited formrly Capita Travel,         190,40.80,Business Travel
ECGD,ECGD,16 Jun 22,Home Travel /Subsistence,SPoCC,Agiito Limited formrly Capita Travel,         190,48.00,Business Travel
ECGD,ECGD,16 Jun 22,Home Travel /Subsistence,SPoCC,Agiito Limited formrly Capita Travel,         190,50.90,Business Travel
ECGD,ECGD,16 Jun 22,Home Travel /Subsistence,SPoCC,Agiito Limited formrly Capita Travel,         190,68.60,Business Travel
ECGD,ECGD,16 Jun 22,Home Travel /Subsistence,OCCMC,Agiito Limited formrly Capita Travel,         190,70.10,Business Travel
ECGD,ECGD,16 Jun 22,Home Travel /Subsistence,SPoCC,Agiito Limited formrly Capita Travel,         190,96.80,Business Travel
ECGD,ECGD,16 Jun 22,Home Travel /Subsistence,OCCMC,Agiito Limited formrly Capita Travel,         190,131.40,Business Travel
ECGD,ECGD,16 Jun 22,Home Travel /Subsistence,OCCMC,Agiito Limited formrly Capita Travel,         190,131.70,Business Travel
ECGD,ECGD,16 Jun 22,Home Travel /Subsistence,OCCMC,Agiito Limited formrly Capita Travel,         190,131.70,Business Travel
ECGD,ECGD,16 Jun 22,Home Travel /Subsistence,Business Group _ Main,Agiito Limited formrly Capita Travel,         190,19.10,Business Travel
ECGD,ECGD,16 Jun 22,Home Travel /Subsistence,OCCMC,Agiito Limited formrly Capita Travel,         190,51.80,Business Travel
ECGD,ECGD,16 Jun 22,Home Travel /Subsistence,Business Group _ Main,Agiito Limited formrly Capita Travel,         190,55.70,Business Travel
ECGD,ECGD,16 Jun 22,Home Travel /Subsistence,Business Group _ Main,Agiito Limited formrly Capita Travel,         190,62.60,Business Travel
ECGD,ECGD,16 Jun 22,Home Travel /Subsistence,OCCMC,Agiito Limited formrly Capita Travel,         190,69.80,Business Travel
ECGD,ECGD,16 Jun 22,Home Travel /Subsistence,Business Group _ Main,Agiito Limited formrly Capita Travel,         190,76.60,Business Travel
ECGD,ECGD,16 Jun 22,Home Travel /Subsistence,OCCMC,Agiito Limited formrly Capita Travel,         190,131.70,Business Travel
ECGD,ECGD,16 Jun 22,Home Travel /Subsistence,OCCMC,Agiito Limited formrly Capita Travel,         190,132.70,Business Travel
ECGD,ECGD,16 Jun 22,Home Travel /Subsistence,OCCMC,Agiito Limited formrly Capita Travel,         190,149.40,Business Travel
ECGD,ECGD,16 Jun 22,Home Travel /Subsistence,OCCMC,Agiito Limited formrly Capita Travel,         190,165.30,Business Travel
ECGD,ECGD,16 Jun 22,Home Travel /Subsistence,OCCMC,Agiito Limited formrly Capita Travel,         190,184.70,Business Travel
ECGD,ECGD,16 Jun 22,Home Travel /Subsistence,Business Group _ Main,Agiito Limited formrly Capita Travel,         190,332.13,Business Travel
ECGD,ECGD,16 Jun 22,Home Travel /Subsistence,Risk Approval Division,Agiito Limited formrly Capita Travel,         190,"2,552.00",Business Travel
ECGD,ECGD,16 Jun 22,Home Travel /Subsistence,Risk Approval Division,Agiito Limited formrly Capita Travel,         190,"2,552.00",Business Travel
ECGD,ECGD,16 Jun 22,Overseas Travel (Case Related),Business Group _ Main,Agiito Limited formrly Capita Travel,         190,20.90,Business Travel
ECGD,ECGD,16 Jun 22,Overseas Travel (Case Related),SPoCC,Agiito Limited formrly Capita Travel,         190,191.80,Business Travel
ECGD,ECGD,16 Jun 22,Overseas Travel (Case Related),Business Group _ Main,Agiito Limited formrly Capita Travel,         190,201.84,Business Travel
ECGD,ECGD,16 Jun 22,Overseas Travel (Case Related),Business Group _ Main,Agiito Limited formrly Capita Travel,         190,287.96,Business Travel
ECGD,ECGD,16 Jun 22,Overseas Travel (Case Related),Business Group _ Main,Agiito Limited formrly Capita Travel,         190,287.96,Business Travel
ECGD,ECGD,16 Jun 22,Overseas Travel (Case Related),OCCMC,Agiito Limited formrly Capita Travel,         190,"1,976.86",Business Travel
ECGD,ECGD,16 Jun 22,Overseas Travel (Case Related),Business Group _ Main,Agiito Limited formrly Capita Travel,         190,"6,691.82",Business Travel
ECGD,ECGD,16 Jun 22,Overseas Travel (Case Related),Business Group _ Main,Agiito Limited formrly Capita Travel,         190,"-6,678.96",Business Travel
ECGD,ECGD,16 Jun 22,Overseas Travel (Case Related),Business Group _ Main,Agiito Limited formrly Capita Travel,         190,"-6,678.96",Business Travel
ECGD,ECGD,16 Jun 22,Overseas Travel (Case Related),Business Group _ Main,Agiito Limited formrly Capita Travel,         190,1.70,Business Travel
ECGD,ECGD,16 Jun 22,Overseas Travel (Case Related),OCCMC,Agiito Limited formrly Capita Travel,         190,10.40,Business Travel
ECGD,ECGD,16 Jun 22,Overseas Travel (Case Related),OCCMC,Agiito Limited formrly Capita Travel,         190,23.00,Business Travel
ECGD,ECGD,16 Jun 22,Overseas Travel (Case Related),Business Group _ Main,Agiito Limited formrly Capita Travel,         190,38.60,Business Travel
ECGD,ECGD,16 Jun 22,Overseas Travel (Case Related),Business Group _ Main,Agiito Limited formrly Capita Travel,         190,66.10,Business Travel
ECGD,ECGD,16 Jun 22,Overseas Travel (Case Related),Risk Approval Division,Agiito Limited formrly Capita Travel,         190,197.91,Business Travel
ECGD,ECGD,16 Jun 22,Overseas Travel (Case Related),OCCMC,Agiito Limited formrly Capita Travel,         190,"3,974.00",Business Travel
ECGD,ECGD,16 Jun 22,Overseas Travel (Case Related),SPoCC,Agiito Limited formrly Capita Travel,         190,"3,974.00",Business Travel
ECGD,ECGD,16 Jun 22,Overseas Travel (Case Related),Business Group _ Main,Agiito Limited formrly Capita Travel,         190,-188.86,Business Travel
ECGD,ECGD,16 Jun 22,Overseas Travel (Case Related),OCCMC,Agiito Limited formrly Capita Travel,         190,131.70,Business Travel
ECGD,ECGD,16 Jun 22,Overseas Travel (Case Related),Risk Approval Division,Agiito Limited formrly Capita Travel,         190,197.91,Business Travel
ECGD,ECGD,16 Jun 22,Overseas Travel (Case Related),Business Group _ Main,Agiito Limited formrly Capita Travel,         190,248.75,Business Travel
ECGD,ECGD,16 Jun 22,Overseas Travel (Case Related),SPoCC,Agiito Limited formrly Capita Travel,         190,"2,060.60",Business Travel
ECGD,ECGD,16 Jun 22,Overseas Travel (Case Related),Business Group _ Main,Agiito Limited formrly Capita Travel,         190,20.90,Business Travel
ECGD,ECGD,16 Jun 22,Overseas Travel (Case Related),Business Group _ Main,Agiito Limited formrly Capita Travel,         190,32.70,Business Travel
ECGD,ECGD,16 Jun 22,Overseas Travel (Case Related),OCCMC,Agiito Limited formrly Capita Travel,         190,37.95,Business Travel
ECGD,ECGD,16 Jun 22,Overseas Travel (Case Related),OCCMC,Agiito Limited formrly Capita Travel,         190,50.45,Business Travel
ECGD,ECGD,16 Jun 22,Overseas Travel (Case Related),OCCMC,Agiito Limited formrly Capita Travel,         190,51.80,Business Travel
ECGD,ECGD,16 Jun 22,Overseas Travel (Case Related),Business Group _ Main,Agiito Limited formrly Capita Travel,         190,55.40,Business Travel
ECGD,ECGD,16 Jun 22,Overseas Travel (Case Related),Business Group _ Main,Agiito Limited formrly Capita Travel,         190,65.95,Business Travel
ECGD,ECGD,16 Jun 22,Overseas Travel (Case Related),SPoCC,Agiito Limited formrly Capita Travel,         190,237.97,Business Travel
ECGD,ECGD,16 Jun 22,Overseas Travel (Case Related),SPoCC,Agiito Limited formrly Capita Travel,         190,292.87,Business Travel
ECGD,ECGD,16 Jun 22,Overseas Travel (Case Related),SPoCC,Agiito Limited formrly Capita Travel,         190,311.90,Business Travel
ECGD,ECGD,16 Jun 22,Overseas Travel (Case Related),Business Group _ Main,Agiito Limited formrly Capita Travel,         190,397.07,Business Travel
ECGD,ECGD,16 Jun 22,Overseas Travel (Case Related),SPoCC,Agiito Limited formrly Capita Travel,         190,531.97,Business Travel
ECGD,ECGD,16 Jun 22,Overseas Travel (Case Related),SPoCC,Agiito Limited formrly Capita Travel,         190,824.97,Business Travel
ECGD,ECGD,16 Jun 22,Overseas Travel (Case Related),Business Group _ Main,Agiito Limited formrly Capita Travel,         190,"2,766.30",Business Travel
ECGD,ECGD,16 Jun 22,Overseas Travel (Case Related),Business Group _ Main,Agiito Limited formrly Capita Travel,         190,"3,492.36",Business Travel
ECGD,ECGD,16 Jun 22,Overseas Travel (Case Related),SPoCC,Agiito Limited formrly Capita Travel,         190,"3,492.36",Business Travel
ECGD,ECGD,16 Jun 22,Overseas Travel (Case Related),SPoCC,Agiito Limited formrly Capita Travel,         190,"3,495.06",Business Travel
ECGD,ECGD,16 Jun 22,Overseas Travel (Case Related),OCCMC,Agiito Limited formrly Capita Travel,         190,"5,006.06",Business Travel
ECGD,ECGD,16 Jun 22,Overseas Travel/Subsistence,Risk Approval Division,Agiito Limited formrly Capita Travel,         190,-184.43,Business Travel
ECGD,ECGD,16 Jun 22,Overseas Travel/Subsistence,Risk Approval Division,Agiito Limited formrly Capita Travel,         190,-184.43,Business Travel
ECGD,ECGD,16 Jun 22,Overseas Travel/Subsistence,Business Group _ Main,Agiito Limited formrly Capita Travel,         190,-157.15,Business Travel
ECGD,ECGD,16 Jun 22,Overseas Travel/Subsistence,Business Group _ Main,Agiito Limited formrly Capita Travel,         190,20.04,Business Travel
ECGD,ECGD,16 Jun 22,Overseas Travel/Subsistence,SPoCC,Agiito Limited formrly Capita Travel,         190,35.19,Business Travel
ECGD,ECGD,16 Jun 22,Overseas Travel/Subsistence,Business Group _ Main,Agiito Limited formrly Capita Travel,         190,63.90,Business Travel
ECGD,ECGD,16 Jun 22,Overseas Travel/Subsistence,Business Group _ Main,Agiito Limited formrly Capita Travel,         190,102.76,Business Travel
ECGD,ECGD,16 Jun 22,Overseas Travel/Subsistence,Business Group _ Main,Agiito Limited formrly Capita Travel,         190,254.12,Business Travel
ECGD,ECGD,16 Jun 22,Overseas Travel/Subsistence,Business Group _ Main,Agiito Limited formrly Capita Travel,         190,254.12,Business Travel
ECGD,ECGD,16 Jun 22,Overseas Travel/Subsistence,Business Group _ Main,Agiito Limited formrly Capita Travel,         190,282.12,Business Travel
ECGD,ECGD,16 Jun 22,Overseas Travel/Subsistence,Business Group _ Main,Agiito Limited formrly Capita Travel,         190,405.97,Business Travel
ECGD,ECGD,16 Jun 22,Overseas Travel/Subsistence,SPoCC,Agiito Limited formrly Capita Travel,         190,"1,976.86",Business Travel
ECGD,ECGD,16 Jun 22,Overseas Travel/Subsistence,Risk Approval Division,Agiito Limited formrly Capita Travel,         190,"2,162.46",Business Travel
ECGD,ECGD,16 Jun 22,Overseas Travel/Subsistence,Business Group _ Main,Agiito Limited formrly Capita Travel,         190,"6,691.82",Business Travel
ECGD,ECGD,16 Jun 22,Overseas Travel/Subsistence,Risk Approval Division,Agiito Limited formrly Capita Travel,         190,53.53,Business Travel
ECGD,ECGD,16 Jun 22,Overseas Travel/Subsistence,Risk Approval Division,Agiito Limited formrly Capita Travel,         190,56.10,Business Travel
ECGD,ECGD,16 Jun 22,Overseas Travel/Subsistence,OCCMC,Agiito Limited formrly Capita Travel,         190,69.80,Business Travel
ECGD,ECGD,16 Jun 22,Overseas Travel/Subsistence,OCCMC,Agiito Limited formrly Capita Travel,         190,208.70,Business Travel
ECGD,ECGD,16 Jun 22,Overseas Travel/Subsistence,SPoCC,Agiito Limited formrly Capita Travel,         190,208.70,Business Travel
ECGD,ECGD,16 Jun 22,Overseas Travel/Subsistence,OCCMC,Agiito Limited formrly Capita Travel,         190,50.45,Business Travel
ECGD,ECGD,16 Jun 22,Overseas Travel/Subsistence,Business Group _ Main,Agiito Limited formrly Capita Travel,         190,51.70,Business Travel
ECGD,ECGD,16 Jun 22,Overseas Travel/Subsistence,Business Group _ Main,Agiito Limited formrly Capita Travel,         190,65.80,Business Travel
ECGD,ECGD,16 Jun 22,Overseas Travel/Subsistence,OCCMC,Agiito Limited formrly Capita Travel,         190,131.40,Business Travel
ECGD,ECGD,16 Jun 22,Overseas Travel/Subsistence,Business Group _ Main,Agiito Limited formrly Capita Travel,         190,387.13,Business Travel
ECGD,ECGD,16 Jun 22,Overseas Travel/Subsistence,Business Group _ Main,Agiito Limited formrly Capita Travel,         190,408.53,Business Travel
ECGD,ECGD,16 Jun 22,Overseas Travel/Subsistence,Business Group _ Main,Agiito Limited formrly Capita Travel,         190,"2,154.13",Business Travel
ECGD,ECGD,16 Jun 22,Overseas Travel/Subsistence,Business Group _ Main,Agiito Limited formrly Capita Travel,         190,"2,154.13",Business Travel
ECGD,ECGD,16 Jun 22,Overseas Travel/Subsistence,SPoCC,Agiito Limited formrly Capita Travel,         190,381.10,Business Travel
ECGD,ECGD,29 Jun 22,Home Travel /Subsistence,Business Group _ Main,Agiito Limited formrly Capita Travel,         193,13.85,Business Travel
ECGD,ECGD,29 Jun 22,Home Travel /Subsistence,Business Group _ Main,Agiito Limited formrly Capita Travel,         193,13.85,Business Travel
ECGD,ECGD,29 Jun 22,Home Travel /Subsistence,Business Group _ Main,Agiito Limited formrly Capita Travel,         193,17.40,Business Travel
ECGD,ECGD,29 Jun 22,Home Travel /Subsistence,Business Group _ Main,Agiito Limited formrly Capita Travel,         193,17.40,Business Travel
ECGD,ECGD,29 Jun 22,Home Travel /Subsistence,Business Group _ Main,Agiito Limited formrly Capita Travel,         193,31.92,Business Travel
ECGD,ECGD,29 Jun 22,Home Travel /Subsistence,Business Group _ Main,Agiito Limited formrly Capita Travel,         193,31.92,Business Travel
ECGD,ECGD,29 Jun 22,Home Travel /Subsistence,Business Group _ Main,Agiito Limited formrly Capita Travel,         193,31.92,Business Travel
ECGD,ECGD,29 Jun 22,Home Travel /Subsistence,Business Group _ Main,Agiito Limited formrly Capita Travel,         193,31.92,Business Travel
ECGD,ECGD,29 Jun 22,Home Travel /Subsistence,Business Group _ Main,Agiito Limited formrly Capita Travel,         193,36.50,Business Travel
ECGD,ECGD,29 Jun 22,Home Travel /Subsistence,Business Group _ Main,Agiito Limited formrly Capita Travel,         193,49.95,Business Travel
ECGD,ECGD,29 Jun 22,Home Travel /Subsistence,Business Group _ Main,Agiito Limited formrly Capita Travel,         193,49.95,Business Travel
ECGD,ECGD,29 Jun 22,Home Travel /Subsistence,Business Group _ Main,Agiito Limited formrly Capita Travel,         193,64.50,Business Travel
ECGD,ECGD,29 Jun 22,Home Travel /Subsistence,Business Group _ Main,Agiito Limited formrly Capita Travel,         193,71.00,Business Travel
ECGD,ECGD,29 Jun 22,Home Travel /Subsistence,Business Group _ Main,Agiito Limited formrly Capita Travel,         193,84.15,Business Travel
ECGD,ECGD,29 Jun 22,Home Travel /Subsistence,Business Group _ Main,Agiito Limited formrly Capita Travel,         193,84.15,Business Travel
ECGD,ECGD,29 Jun 22,Home Travel /Subsistence,Business Group _ Main,Agiito Limited formrly Capita Travel,         193,89.67,Business Travel
ECGD,ECGD,29 Jun 22,Home Travel /Subsistence,Business Group _ Main,Agiito Limited formrly Capita Travel,         193,89.67,Business Travel
ECGD,ECGD,29 Jun 22,Home Travel /Subsistence,Business Group _ Main,Agiito Limited formrly Capita Travel,         193,89.67,Business Travel
ECGD,ECGD,29 Jun 22,Home Travel /Subsistence,Business Group _ Main,Agiito Limited formrly Capita Travel,         193,89.67,Business Travel
ECGD,ECGD,29 Jun 22,Home Travel /Subsistence,Business Group _ Main,Agiito Limited formrly Capita Travel,         193,94.40,Business Travel
ECGD,ECGD,29 Jun 22,Home Travel /Subsistence,Business Group _ Main,Agiito Limited formrly Capita Travel,         193,96.00,Business Travel
ECGD,ECGD,29 Jun 22,Home Travel /Subsistence,Business Group _ Main,Agiito Limited formrly Capita Travel,         193,96.70,Business Travel
ECGD,ECGD,29 Jun 22,Home Travel /Subsistence,Business Group _ Main,Agiito Limited formrly Capita Travel,         193,160.60,Business Travel
ECGD,ECGD,29 Jun 22,Home Travel /Subsistence,Business Group _ Main,Agiito Limited formrly Capita Travel,         193,160.60,Business Travel
ECGD,ECGD,29 Jun 22,Home Travel /Subsistence,Export Guarantees Advisory Council,Agiito Limited formrly Capita Travel,         193,35.90,Business Travel
ECGD,ECGD,29 Jun 22,Home Travel /Subsistence,Export Guarantees Advisory Council,Agiito Limited formrly Capita Travel,         193,36.20,Business Travel
ECGD,ECGD,29 Jun 22,Home Travel /Subsistence,FCD,Agiito Limited formrly Capita Travel,         193,17.66,Business Travel
ECGD,ECGD,29 Jun 22,Home Travel /Subsistence,FCD,Agiito Limited formrly Capita Travel,         193,33.30,Business Travel
ECGD,ECGD,29 Jun 22,Home Travel /Subsistence,FCD,Agiito Limited formrly Capita Travel,         193,43.56,Business Travel
ECGD,ECGD,29 Jun 22,Home Travel /Subsistence,FCD,Agiito Limited formrly Capita Travel,         193,47.26,Business Travel
ECGD,ECGD,29 Jun 22,Home Travel /Subsistence,HRD,Agiito Limited formrly Capita Travel,         193,6.36,Business Travel
ECGD,ECGD,29 Jun 22,Home Travel /Subsistence,HRD,Agiito Limited formrly Capita Travel,         193,25.50,Business Travel
ECGD,ECGD,29 Jun 22,Home Travel /Subsistence,HRD,Agiito Limited formrly Capita Travel,         193,34.90,Business Travel
ECGD,ECGD,29 Jun 22,Home Travel /Subsistence,SPOCC,Agiito Limited formrly Capita Travel,         193,6.36,Business Travel
ECGD,ECGD,29 Jun 22,Home Travel /Subsistence,LD,Agiito Limited formrly Capita Travel,         193,6.36,Business Travel
ECGD,ECGD,29 Jun 22,Home Travel /Subsistence,SPOCC,Agiito Limited formrly Capita Travel,         193,24.07,Business Travel
ECGD,ECGD,29 Jun 22,Home Travel /Subsistence,LD,Agiito Limited formrly Capita Travel,         193,24.07,Business Travel
ECGD,ECGD,29 Jun 22,Home Travel /Subsistence,SPOCC,Agiito Limited formrly Capita Travel,         193,30.26,Business Travel
ECGD,ECGD,29 Jun 22,Home Travel /Subsistence,LD,Agiito Limited formrly Capita Travel,         193,30.26,Business Travel
ECGD,ECGD,29 Jun 22,Home Travel /Subsistence,Risk Approval Division,Agiito Limited formrly Capita Travel,         193,6.36,Business Travel
ECGD,ECGD,29 Jun 22,Home Travel /Subsistence,Risk Approval Division,Agiito Limited formrly Capita Travel,         193,24.07,Business Travel
ECGD,ECGD,29 Jun 22,Home Travel /Subsistence,Risk Approval Division,Agiito Limited formrly Capita Travel,         193,30.26,Business Travel
ECGD,ECGD,29 Jun 22,Home Travel /Subsistence,SPoCC,Agiito Limited formrly Capita Travel,         193,6.36,Business Travel
ECGD,ECGD,29 Jun 22,Home Travel /Subsistence,SPoCC,Agiito Limited formrly Capita Travel,         193,17.66,Business Travel
ECGD,ECGD,29 Jun 22,Home Travel /Subsistence,SPoCC,Agiito Limited formrly Capita Travel,         193,17.66,Business Travel
ECGD,ECGD,29 Jun 22,Home Travel /Subsistence,SPoCC,Agiito Limited formrly Capita Travel,         193,17.66,Business Travel
ECGD,ECGD,29 Jun 22,Home Travel /Subsistence,SPoCC,Agiito Limited formrly Capita Travel,         193,17.66,Business Travel
ECGD,ECGD,29 Jun 22,Home Travel /Subsistence,SPoCC,Agiito Limited formrly Capita Travel,         193,21.90,Business Travel
ECGD,ECGD,29 Jun 22,Home Travel /Subsistence,SPoCC,Agiito Limited formrly Capita Travel,         193,24.07,Business Travel
ECGD,ECGD,29 Jun 22,Home Travel /Subsistence,SPoCC,Agiito Limited formrly Capita Travel,         193,28.40,Business Travel
ECGD,ECGD,29 Jun 22,Home Travel /Subsistence,SPoCC,Agiito Limited formrly Capita Travel,         193,28.70,Business Travel
ECGD,ECGD,29 Jun 22,Home Travel /Subsistence,SPoCC,Agiito Limited formrly Capita Travel,         193,30.26,Business Travel
ECGD,ECGD,29 Jun 22,Home Travel /Subsistence,SPoCC,Agiito Limited formrly Capita Travel,         193,30.26,Business Travel
ECGD,ECGD,29 Jun 22,Home Travel /Subsistence,SPoCC,Agiito Limited formrly Capita Travel,         193,35.20,Business Travel
ECGD,ECGD,29 Jun 22,Home Travel /Subsistence,SPoCC,Agiito Limited formrly Capita Travel,         193,39.40,Business Travel
ECGD,ECGD,29 Jun 22,Home Travel /Subsistence,SPoCC,Agiito Limited formrly Capita Travel,         193,43.56,Business Travel
ECGD,ECGD,29 Jun 22,Home Travel /Subsistence,SPoCC,Agiito Limited formrly Capita Travel,         193,43.56,Business Travel
ECGD,ECGD,29 Jun 22,Home Travel /Subsistence,SPoCC,Agiito Limited formrly Capita Travel,         193,43.56,Business Travel
ECGD,ECGD,29 Jun 22,Home Travel /Subsistence,SPoCC,Agiito Limited formrly Capita Travel,         193,43.56,Business Travel
ECGD,ECGD,29 Jun 22,Home Travel /Subsistence,SPoCC,Agiito Limited formrly Capita Travel,         193,47.26,Business Travel
ECGD,ECGD,29 Jun 22,Home Travel /Subsistence,SPoCC,Agiito Limited formrly Capita Travel,         193,47.26,Business Travel
ECGD,ECGD,29 Jun 22,Home Travel /Subsistence,SPoCC,Agiito Limited formrly Capita Travel,         193,47.26,Business Travel
ECGD,ECGD,29 Jun 22,Home Travel /Subsistence,SPoCC,Agiito Limited formrly Capita Travel,         193,47.26,Business Travel
ECGD,ECGD,29 Jun 22,Home Travel /Subsistence,SPoCC,Agiito Limited formrly Capita Travel,         193,48.10,Business Travel
ECGD,ECGD,29 Jun 22,Home Travel /Subsistence,SPoCC,Agiito Limited formrly Capita Travel,         193,73.80,Business Travel
ECGD,ECGD,29 Jun 22,Home Travel /Subsistence,SPoCC,Agiito Limited formrly Capita Travel,         193,136.30,Business Travel
ECGD,ECGD,29 Jun 22,Home Travel /Subsistence,SPoCC,Agiito Limited formrly Capita Travel,         193,136.60,Business Travel
ECGD,ECGD,29 Jun 22,Home Travel /Subsistence,SPoCC,Agiito Limited formrly Capita Travel,         193,136.60,Business Travel
ECGD,ECGD,29 Jun 22,Home Travel /Subsistence,SPoCC,Agiito Limited formrly Capita Travel,         193,136.60,Business Travel
ECGD,ECGD,29 Jun 22,Overseas Travel (Case Related),Business Group _ Main,Agiito Limited formrly Capita Travel,         193,"-1,452.37",Business Travel
ECGD,ECGD,29 Jun 22,Overseas Travel (Case Related),Business Group _ Main,Agiito Limited formrly Capita Travel,         193,106.86,Business Travel
ECGD,ECGD,29 Jun 22,Overseas Travel (Case Related),Business Group _ Main,Agiito Limited formrly Capita Travel,         193,106.86,Business Travel
ECGD,ECGD,29 Jun 22,Overseas Travel (Case Related),Business Group _ Main,Agiito Limited formrly Capita Travel,         193,188.86,Business Travel
ECGD,ECGD,29 Jun 22,Overseas Travel (Case Related),Business Group _ Main,Agiito Limited formrly Capita Travel,         193,188.86,Business Travel
ECGD,ECGD,29 Jun 22,Overseas Travel (Case Related),Business Group _ Main,Agiito Limited formrly Capita Travel,         193,502.52,Business Travel
ECGD,ECGD,29 Jun 22,Overseas Travel (Case Related),Business Group _ Main,Agiito Limited formrly Capita Travel,         193,563.13,Business Travel
ECGD,ECGD,29 Jun 22,Overseas Travel (Case Related),Business Group _ Main,Agiito Limited formrly Capita Travel,         193,"4,419.42",Business Travel
ECGD,ECGD,29 Jun 22,Overseas Travel (Case Related),Business Group _ Main,Agiito Limited formrly Capita Travel,         193,"4,419.42",Business Travel
ECGD,ECGD,29 Jun 22,Overseas Travel/Subsistence,OCCMC,Agiito Limited formrly Capita Travel,         193,20.45,Business Travel
ECGD,ECGD,29 Jun 22,Overseas Travel/Subsistence,OCCMC,Agiito Limited formrly Capita Travel,         193,27.15,Business Travel
ECGD,ECGD,29 Jun 22,Overseas Travel/Subsistence,OCCMC,Agiito Limited formrly Capita Travel,         193,65.30,Business Travel
ECGD,ECGD,29 Jun 22,Overseas Travel (Case Related),Risk Approval Division,Agiito Limited formrly Capita Travel,         193,171.93,Business Travel
ECGD,ECGD,29 Jun 22,Overseas Travel (Case Related),Risk Approval Division,Agiito Limited formrly Capita Travel,         193,184.43,Business Travel
ECGD,ECGD,29 Jun 22,Overseas Travel (Case Related),Risk Approval Division,Agiito Limited formrly Capita Travel,         193,184.43,Business Travel
ECGD,ECGD,29 Jun 22,Overseas Travel (Case Related),Risk Approval Division,Agiito Limited formrly Capita Travel,         193,919.62,Business Travel
ECGD,ECGD,29 Jun 22,Overseas Travel (Case Related),Risk Approval Division,Agiito Limited formrly Capita Travel,         193,"1,091.55",Business Travel
ECGD,ECGD,29 Jun 22,Overseas Travel (Case Related),Risk Approval Division,Agiito Limited formrly Capita Travel,         193,"3,060.03",Business Travel
ECGD,ECGD,29 Jun 22,Overseas Travel (Case Related),Risk Approval Division,Agiito Limited formrly Capita Travel,         193,"3,060.03",Business Travel
ECGD,ECGD,29 Jun 22,Overseas Travel (Case Related),Risk Approval Division,Agiito Limited formrly Capita Travel,         193,"3,638.72",Business Travel
ECGD,ECGD,29 Jun 22,Overseas Travel (Case Related),Risk Approval Division,Agiito Limited formrly Capita Travel,         193,"3,638.72",Business Travel
ECGD,ECGD,29 Jun 22,Overseas Travel (Case Related),Risk Approval Division,Agiito Limited formrly Capita Travel,         193,"4,419.42",Business Travel
ECGD,ECGD,29 Jun 22,Overseas Travel (Case Related),Risk Approval Division,Agiito Limited formrly Capita Travel,         193,"4,419.42",Business Travel
ECGD,ECGD,29 Jun 22,Overseas Travel (Case Related),SPoCC,Agiito Limited formrly Capita Travel,         193,-100.00,Business Travel
ECGD,ECGD,29 Jun 22,Overseas Travel (Case Related),SPoCC,Agiito Limited formrly Capita Travel,         193,216.72,Business Travel
ECGD,ECGD,29 Jun 22,Overseas Travel/Subsistence,Business Group _ Main,Agiito Limited formrly Capita Travel,         193,0.70,Business Travel
ECGD,ECGD,29 Jun 22,Overseas Travel/Subsistence,Business Group _ Main,Agiito Limited formrly Capita Travel,         193,11.75,Business Travel
ECGD,ECGD,29 Jun 22,Overseas Travel/Subsistence,Business Group _ Main,Agiito Limited formrly Capita Travel,         193,12.86,Business Travel
ECGD,ECGD,29 Jun 22,Overseas Travel/Subsistence,Business Group _ Main,Agiito Limited formrly Capita Travel,         193,12.86,Business Travel
ECGD,ECGD,29 Jun 22,Overseas Travel/Subsistence,Business Group _ Main,Agiito Limited formrly Capita Travel,         193,95.86,Business Travel
ECGD,ECGD,29 Jun 22,Overseas Travel/Subsistence,Business Group _ Main,Agiito Limited formrly Capita Travel,         193,148.14,Business Travel
ECGD,ECGD,29 Jun 22,Overseas Travel/Subsistence,Business Group _ Main,Agiito Limited formrly Capita Travel,         193,167.60,Business Travel
ECGD,ECGD,29 Jun 22,Overseas Travel/Subsistence,Business Group _ Main,Agiito Limited formrly Capita Travel,         193,167.60,Business Travel
ECGD,ECGD,29 Jun 22,Overseas Travel/Subsistence,Business Group _ Main,Agiito Limited formrly Capita Travel,         193,171.53,Business Travel
ECGD,ECGD,29 Jun 22,Overseas Travel/Subsistence,Business Group _ Main,Agiito Limited formrly Capita Travel,         193,204.42,Business Travel
ECGD,ECGD,29 Jun 22,Overseas Travel/Subsistence,Business Group _ Main,Agiito Limited formrly Capita Travel,         193,204.42,Business Travel
ECGD,ECGD,29 Jun 22,Overseas Travel/Subsistence,Business Group _ Main,Agiito Limited formrly Capita Travel,         193,210.18,Business Travel
ECGD,ECGD,29 Jun 22,Overseas Travel/Subsistence,Business Group _ Main,Agiito Limited formrly Capita Travel,         193,237.46,Business Travel
ECGD,ECGD,29 Jun 22,Overseas Travel/Subsistence,Business Group _ Main,Agiito Limited formrly Capita Travel,         193,255.80,Business Travel
ECGD,ECGD,29 Jun 22,Overseas Travel/Subsistence,Business Group _ Main,Agiito Limited formrly Capita Travel,         193,255.80,Business Travel
ECGD,ECGD,29 Jun 22,Overseas Travel/Subsistence,Business Group _ Main,Agiito Limited formrly Capita Travel,         193,255.80,Business Travel
ECGD,ECGD,29 Jun 22,Overseas Travel/Subsistence,Business Group _ Main,Agiito Limited formrly Capita Travel,         193,"3,253.66",Business Travel
ECGD,ECGD,29 Jun 22,Overseas Travel/Subsistence,Business Group _ Main,Agiito Limited formrly Capita Travel,         193,"3,259.03",Business Travel
ECGD,ECGD,29 Jun 22,Overseas Travel/Subsistence,Business Group _ Main,Agiito Limited formrly Capita Travel,         193,"3,931.62",Business Travel
ECGD,ECGD,29 Jun 22,Overseas Travel/Subsistence,Business Group _ Main,Agiito Limited formrly Capita Travel,         193,"4,230.22",Business Travel
ECGD,ECGD,29 Jun 22,Overseas Travel/Subsistence,Business Group _ Main,Agiito Limited formrly Capita Travel,         193,"4,868.32",Business Travel
ECGD,ECGD,29 Jun 22,Overseas Travel/Subsistence,Business Group _ Main,Agiito Limited formrly Capita Travel,         193,"5,856.22",Business Travel
ECGD,ECGD,29 Jun 22,Overseas Travel/Subsistence,Business Group _ Main,Agiito Limited formrly Capita Travel,         193,"5,856.22",Business Travel
ECGD,ECGD,29 Jun 22,Overseas Travel/Subsistence,Business Group _ Main,Agiito Limited formrly Capita Travel,         193,"7,678.92",Business Travel
ECGD,ECGD,29 Jun 22,Overseas Travel/Subsistence,Business Group _ Main,Agiito Limited formrly Capita Travel,         193,"8,194.78",Business Travel
ECGD,ECGD,29 Jun 22,Overseas Travel/Subsistence,OCCMC,Agiito Limited formrly Capita Travel,         193,"-2,134.00",Business Travel
ECGD,ECGD,29 Jun 22,Overseas Travel/Subsistence,OCCMC,Agiito Limited formrly Capita Travel,         193,"-1,222.90",Business Travel
ECGD,ECGD,29 Jun 22,Overseas Travel/Subsistence,OCCMC,Agiito Limited formrly Capita Travel,         193,13.70,Business Travel
ECGD,ECGD,29 Jun 22,Overseas Travel/Subsistence,OCCMC,Agiito Limited formrly Capita Travel,         193,69.80,Business Travel
ECGD,ECGD,29 Jun 22,Overseas Travel/Subsistence,OCCMC,Agiito Limited formrly Capita Travel,         193,70.10,Business Travel
ECGD,ECGD,29 Jun 22,Overseas Travel/Subsistence,OCCMC,Agiito Limited formrly Capita Travel,         193,70.10,Business Travel
ECGD,ECGD,29 Jun 22,Overseas Travel/Subsistence,OCCMC,Agiito Limited formrly Capita Travel,         193,131.40,Business Travel
ECGD,ECGD,29 Jun 22,Overseas Travel/Subsistence,OCCMC,Agiito Limited formrly Capita Travel,         193,131.70,Business Travel
ECGD,ECGD,29 Jun 22,Overseas Travel/Subsistence,OCCMC,Agiito Limited formrly Capita Travel,         193,131.70,Business Travel
ECGD,ECGD,29 Jun 22,Overseas Travel/Subsistence,OCCMC,Agiito Limited formrly Capita Travel,         193,198.50,Business Travel
ECGD,ECGD,29 Jun 22,Overseas Travel/Subsistence,OCCMC,Agiito Limited formrly Capita Travel,         193,263.10,Business Travel
ECGD,ECGD,29 Jun 22,Overseas Travel/Subsistence,OCCMC,Agiito Limited formrly Capita Travel,         193,274.40,Business Travel
ECGD,ECGD,29 Jun 22,Overseas Travel/Subsistence,OCCMC,Agiito Limited formrly Capita Travel,         193,327.97,Business Travel
ECGD,ECGD,29 Jun 22,Overseas Travel/Subsistence,OCCMC,Agiito Limited formrly Capita Travel,         193,327.97,Business Travel
ECGD,ECGD,29 Jun 22,Overseas Travel/Subsistence,OCCMC,Agiito Limited formrly Capita Travel,         193,"1,614.76",Business Travel
ECGD,ECGD,29 Jun 22,Overseas Travel/Subsistence,OCCMC,Agiito Limited formrly Capita Travel,         193,"1,726.40",Business Travel
ECGD,ECGD,29 Jun 22,Overseas Travel/Subsistence,OCCMC,Agiito Limited formrly Capita Travel,         193,"1,880.32",Business Travel
ECGD,ECGD,29 Jun 22,Overseas Travel/Subsistence,OCCMC,Agiito Limited formrly Capita Travel,         193,"3,379.50",Business Travel
ECGD,ECGD,29 Jun 22,Overseas Travel/Subsistence,OCCMC,Agiito Limited formrly Capita Travel,         193,"3,379.50",Business Travel
ECGD,ECGD,29 Jun 22,Overseas Travel/Subsistence,OCCMC,Agiito Limited formrly Capita Travel,         193,"3,616.26",Business Travel
ECGD,ECGD,29 Jun 22,Overseas Travel/Subsistence,OCCMC,Agiito Limited formrly Capita Travel,         193,"3,806.56",Business Travel
ECGD,ECGD,29 Jun 22,Overseas Travel/Subsistence,OCCMC,Agiito Limited formrly Capita Travel,         193,"3,887.59",Business Travel
ECGD,ECGD,29 Jun 22,Overseas Travel/Subsistence,OCCMC,Agiito Limited formrly Capita Travel,         193,"4,056.66",Business Travel
ECGD,ECGD,29 Jun 22,Overseas Travel/Subsistence,OCCMC,Agiito Limited formrly Capita Travel,         193,"5,463.46",Business Travel
ECGD,ECGD,29 Jun 22,Overseas Travel/Subsistence,OCCMC,Agiito Limited formrly Capita Travel,         193,"7,689.26",Business Travel
ECGD,ECGD,29 Jun 22,Overseas Travel/Subsistence,Portfolio Management Division,Agiito Limited formrly Capita Travel,         193,198.43,Business Travel
ECGD,ECGD,29 Jun 22,Overseas Travel/Subsistence,Portfolio Management Division,Agiito Limited formrly Capita Travel,         193,198.43,Business Travel
ECGD,ECGD,29 Jun 22,Overseas Travel/Subsistence,Risk Approval Division,Agiito Limited formrly Capita Travel,         193,98.77,Business Travel
ECGD,ECGD,29 Jun 22,Overseas Travel/Subsistence,Risk Approval Division,Agiito Limited formrly Capita Travel,         193,157.77,Business Travel
ECGD,ECGD,29 Jun 22,Overseas Travel/Subsistence,Risk Approval Division,Agiito Limited formrly Capita Travel,         193,266.32,Business Travel
ECGD,ECGD,29 Jun 22,Overseas Travel/Subsistence,Risk Approval Division,Agiito Limited formrly Capita Travel,         193,392.32,Business Travel
ECGD,ECGD,29 Jun 22,Overseas Travel/Subsistence,SPoCC,Agiito Limited formrly Capita Travel,         193,345.02,Business Travel
ECGD,ECGD,29 Jun 22,Overseas Travel/Subsistence,SPoCC,Agiito Limited formrly Capita Travel,         193,552.98,Business Travel
ECGD,ECGD,29 Jun 22,Overseas Travel/Subsistence,Special Situations Division,Agiito Limited formrly Capita Travel,         193,201.42,Business Travel
ECGD,ECGD,29 Jun 22,Overseas Travel/Subsistence,Special Situations Division,Agiito Limited formrly Capita Travel,         193,238.05,Business Travel
ECGD,ECGD,29 Jun 22,Overseas Travel/Subsistence,Special Situations Division,Agiito Limited formrly Capita Travel,         193,243.42,Business Travel
ECGD,ECGD,29 Jun 22,Overseas Travel/Subsistence,Special Situations Division,Agiito Limited formrly Capita Travel,         193,266.42,Business Travel
ECGD,ECGD,29 Jun 22,Overseas Travel/Subsistence,Special Situations Division,Agiito Limited formrly Capita Travel,         193,288.51,Business Travel
ECGD,ECGD,7 Jun 22,Legal Recoverable Expense,Legal Division,Allen & Overy,         947,"38,217.46",Legal Services (Recoverable)
ECGD,ECGD,7 Jun 22,Legal Recoverable Expense,Legal Division,Allen & Overy,         948,"110,135.95",Legal Services (Recoverable)
ECGD,ECGD,16 Jun 22,Legal Recoverable Expense,Legal Division,White & Case London,         953,"15,792.59",Legal Services (Recoverable)
ECGD,ECGD,16 Jun 22,Legal Recoverable Expense,Legal Division,White & Case London,         953,"15,792.60",Legal Services (Recoverable)
ECGD,ECGD,16 Jun 22,Legal Recoverable Expense,Legal Division,White & Case London,         953,"15,792.60",Legal Services (Recoverable)
ECGD,ECGD,16 Jun 22,Legal Recoverable Expense,Legal Division,White & Case London,         953,"15,792.60",Legal Services (Recoverable)
ECGD,ECGD,16 Jun 22,Legal Recoverable Expense,Legal Division,White & Case London,         953,"15,792.60",Legal Services (Recoverable)
ECGD,ECGD,17 Jun 22,Legal Recoverable Expense,Legal Division,White & Case London,         954,"39,481.49",Legal Services (Recoverable)
ECGD,ECGD,17 Jun 22,Legal Recoverable Expense,Legal Division,White & Case London,         954,"39,481.49",Legal Services (Recoverable)
ECGD,ECGD,17 Jun 22,Legal Recoverable Expense,Legal Division,White & Case London,         955,"78,962.99",Legal Services (Recoverable)
ECGD,ECGD,17 Jun 22,Legal Recoverable Expense,Legal Division,White & Case London,         956,"78,962.98",Legal Services (Recoverable)
ECGD,ECGD,21 Jun 22,Non-Legal Recoverable Expense,Special Situations Division,Rolls-Royce Leasing Limited,         957,"85,294.44",Technical Services (recoverable)
ECGD,ECGD,21 Jun 22,Non-Legal Recoverable Expense,Special Situations Division,Rolls-Royce Leasing Limited,         958,"269,177.78",Technical Services (recoverable)
ECGD,ECGD,28 Jun 22,Legal Recoverable Expense,Legal Division,White & Case LLP USD,         960,"76,720.18",Legal Services (Recoverable)
ECGD,ECGD,28 Jun 22,Legal Recoverable Expense,Legal Division,White & Case London,         961,"58,638.00",Legal Services (Recoverable)
ECGD,ECGD,28 Jun 22,Legal Recoverable Expense,Legal Division,White & Case London,         962,"58,638.00",Legal Services (Recoverable)
ECGD,ECGD,28 Jun 22,Legal Recoverable Expense,Legal Division,White & Case London,         963,"29,319.00",Legal Services (Recoverable)
ECGD,ECGD,28 Jun 22,Legal Recoverable Expense,Legal Division,White & Case London,         963,"29,319.00",Legal Services (Recoverable)
ECGD,ECGD,28 Jun 22,Legal Recoverable Expense,Legal Division,White & Case London,         964,"58,638.00",Legal Services (Recoverable)
ECGD,ECGD,7 Jun 22,IT Cloud and Hosting,ID,Bytes Software Services Ltd,       82494,"62,618.69",IT Systems
ECGD,ECGD,7 Jun 22,Shared Services Costs,HRD,Department for International Trade,       82495,"140,950.00",Shared services Procurement delivery cost
ECGD,ECGD,7 Jun 22,Overseas Export Managers,OCCMC,Foreign & Commonwealth Office,       82499,"40,130.59",Overseas Staff
ECGD,ECGD,7 Jun 22,Project Consultancy Costs,Change Board,Price Waterhouse Coopers,       82500,"66,830.00",Project Consultancy
ECGD,ECGD,7 Jun 22,Marketing,OCCMC,Manning Gottlieb OMD,       82505,"69,526.49",Marketing & Communications
ECGD,ECGD,7 Jun 22,Project Consultancy Costs,Change Board,Cogsworx Limited,       82506,"48,225.00",Project Consultancy
ECGD,ECGD,7 Jun 22,Marketing,OCCMC,Manning Gottlieb OMD,       82510,"95,971.80",Marketing & Communications
ECGD,ECGD,7 Jun 22,Overseas Export Managers,OCCMC,Foreign & Commonwealth Office,       82511,"37,609.28",Overseas Staff
ECGD,ECGD,7 Jun 22,Overseas Export Managers,OCCMC,Foreign & Commonwealth Office,       82513,"45,229.36",Overseas Staff
ECGD,ECGD,14 Jun 22,Agency - Interim Managers,HRD,Alexander Mann Solutions,       82531,"2,100.20",Interim Staff
ECGD,ECGD,14 Jun 22,Agency - Interim Managers,HRD,Alexander Mann Solutions,       82531,"2,134.76",Interim Staff
ECGD,ECGD,14 Jun 22,Agency - Interim Managers,HRD,Alexander Mann Solutions,       82531,"2,134.76",Interim Staff
ECGD,ECGD,14 Jun 22,Agency - Interim Managers,HRD,Alexander Mann Solutions,       82531,"2,362.70",Interim Staff
ECGD,ECGD,14 Jun 22,Agency - Interim Managers,HRD,Alexander Mann Solutions,       82531,"2,637.70",Interim Staff
ECGD,ECGD,14 Jun 22,Agency - Specialist Contractors,HRD,Alexander Mann Solutions,       82531,"1,847.78",Interim Staff
ECGD,ECGD,14 Jun 22,Agency - Specialist Contractors,HRD,Alexander Mann Solutions,       82531,"2,155.74",Interim Staff
ECGD,ECGD,14 Jun 22,Agency - Specialist Contractors,HRD,Alexander Mann Solutions,       82531,"2,155.74",Interim Staff
ECGD,ECGD,14 Jun 22,Agency - Specialist Contractors,HRD,Alexander Mann Solutions,       82531,"2,656.22",Interim Staff
ECGD,ECGD,14 Jun 22,Agency - Specialist Contractors,HRD,Alexander Mann Solutions,       82531,"2,823.05",Interim Staff
ECGD,ECGD,14 Jun 22,Agency - Specialist Contractors,HRD,Alexander Mann Solutions,       82531,"2,874.32",Interim Staff
ECGD,ECGD,14 Jun 22,Agency - Specialist Contractors,HRD,Alexander Mann Solutions,       82531,"2,887.75",Interim Staff
ECGD,ECGD,14 Jun 22,Agency - Specialist Contractors,HRD,Alexander Mann Solutions,       82531,"2,951.35",Interim Staff
ECGD,ECGD,14 Jun 22,Agency - Specialist Contractors,HRD,Alexander Mann Solutions,       82531,"2,951.35",Interim Staff
ECGD,ECGD,14 Jun 22,Agency - Specialist Contractors,HRD,Alexander Mann Solutions,       82531,"3,336.30",Interim Staff
ECGD,ECGD,14 Jun 22,Agency - Specialist Contractors,HRD,Alexander Mann Solutions,       82531,"3,593.85",Interim Staff
ECGD,ECGD,14 Jun 22,Agency - Specialist Contractors,HRD,Alexander Mann Solutions,       82531,"4,146.75",Interim Staff
ECGD,ECGD,14 Jun 22,Agency - Temporary Staff,HRD,Alexander Mann Solutions,       82531,625.20,Interim Staff
ECGD,ECGD,14 Jun 22,Agency - Temporary Staff,HRD,Alexander Mann Solutions,       82531,687.24,Interim Staff
ECGD,ECGD,14 Jun 22,Agency - Temporary Staff,HRD,Alexander Mann Solutions,       82531,715.88,Interim Staff
ECGD,ECGD,14 Jun 22,Agency - Temporary Staff,HRD,Alexander Mann Solutions,       82531,805.12,Interim Staff
ECGD,ECGD,14 Jun 22,Consultancy,Compliance,Ernst and Young LLP,       82546,"46,725.00",Consultancy
ECGD,ECGD,14 Jun 22,Marketing,OCCMC,Manning Gottlieb OMD,       82551,"43,580.41",Marketing & Communications
ECGD,ECGD,17 Jun 22,1HGR Rent and Charges,HRD,Government Property Agency,       82555,"8,936.25",Interim Staff
ECGD,ECGD,17 Jun 22,1HGR Rent and Charges,HRD,Government Property Agency,       82555,"9,044.62",Central Building Charges
ECGD,ECGD,17 Jun 22,1HGR Rent and Charges,HRD,Government Property Agency,       82555,"490,210.43",Central Building Charges
ECGD,ECGD,16 Jun 22,Overseas Export Managers,OCCMC,Green Park Interim & Executive Searc,       82560,"30,813.31",Overseas Staff
ECGD,ECGD,21 Jun 22,Agency - Specialist Contractors,HRD,Alexander Mann Solutions,       82564,"1,334.52",Interim Staff
ECGD,ECGD,21 Jun 22,Agency - Specialist Contractors,HRD,Alexander Mann Solutions,       82564,"1,539.84",Interim Staff
ECGD,ECGD,21 Jun 22,Agency - Specialist Contractors,HRD,Alexander Mann Solutions,       82564,"1,770.81",Interim Staff
ECGD,ECGD,21 Jun 22,Agency - Specialist Contractors,HRD,Alexander Mann Solutions,       82564,"1,770.81",Interim Staff
ECGD,ECGD,21 Jun 22,Agency - Specialist Contractors,HRD,Alexander Mann Solutions,       82564,"1,770.81",Interim Staff
ECGD,ECGD,21 Jun 22,Agency - Specialist Contractors,HRD,Alexander Mann Solutions,       82564,"1,796.45",Interim Staff
ECGD,ECGD,21 Jun 22,Agency - Specialist Contractors,HRD,Alexander Mann Solutions,       82564,"1,890.16",Interim Staff
ECGD,ECGD,21 Jun 22,Agency - Specialist Contractors,HRD,Alexander Mann Solutions,       82564,"1,924.80",Interim Staff
ECGD,ECGD,21 Jun 22,Agency - Specialist Contractors,HRD,Alexander Mann Solutions,       82564,"2,155.74",Interim Staff
ECGD,ECGD,21 Jun 22,Agency - Specialist Contractors,HRD,Alexander Mann Solutions,       82564,"2,310.20",Interim Staff
ECGD,ECGD,21 Jun 22,Agency - Specialist Contractors,HRD,Alexander Mann Solutions,       82564,"2,875.08",Interim Staff
ECGD,ECGD,21 Jun 22,Agency - Specialist Contractors,HRD,Alexander Mann Solutions,       82564,"3,317.40",Interim Staff
ECGD,ECGD,21 Jun 22,Agency - Temporary Staff,HRD,Alexander Mann Solutions,       82564,143.18,Interim Staff
ECGD,ECGD,21 Jun 22,Agency - Temporary Staff,HRD,Alexander Mann Solutions,       82564,152.72,Interim Staff
ECGD,ECGD,21 Jun 22,Agency - Temporary Staff,HRD,Alexander Mann Solutions,       82564,641.92,Interim Staff
ECGD,ECGD,21 Jun 22,IT Managed Services,ID,Risual Ltd,       82566,"122,532.40",IT Technical services
ECGD,ECGD,28 Jun 22,Agency - Interim Managers,HRD,Alexander Mann Solutions,       82576,"1,055.08",Interim Staff
ECGD,ECGD,28 Jun 22,Agency - Interim Managers,HRD,Alexander Mann Solutions,       82576,"1,601.07",Interim Staff
ECGD,ECGD,28 Jun 22,Agency - Interim Managers,HRD,Alexander Mann Solutions,       82576,"1,680.16",Interim Staff
ECGD,ECGD,28 Jun 22,Agency - Interim Managers,HRD,Alexander Mann Solutions,       82576,"1,890.16",Interim Staff
ECGD,ECGD,28 Jun 22,Agency - Interim Managers,HRD,Alexander Mann Solutions,       82576,"2,100.20",Interim Staff
ECGD,ECGD,28 Jun 22,Agency - Interim Managers,HRD,Alexander Mann Solutions,       82576,"2,362.70",Interim Staff
ECGD,ECGD,28 Jun 22,Agency - Interim Managers,HRD,Alexander Mann Solutions,       82576,"2,637.70",Interim Staff
ECGD,ECGD,28 Jun 22,Agency - Interim Managers,HRD,Alexander Mann Solutions,       82576,"2,637.70",Interim Staff
ECGD,ECGD,28 Jun 22,Agency - Interim Managers,HRD,Alexander Mann Solutions,       82576,"2,668.45",Interim Staff
ECGD,ECGD,28 Jun 22,Agency - Specialist Contractors,HRD,Alexander Mann Solutions,       82576,769.92,Interim Staff
ECGD,ECGD,28 Jun 22,Agency - Specialist Contractors,HRD,Alexander Mann Solutions,       82576,"1,658.70",Interim Staff
ECGD,ECGD,28 Jun 22,Agency - Specialist Contractors,HRD,Alexander Mann Solutions,       82576,"2,001.78",Interim Staff
ECGD,ECGD,28 Jun 22,Agency - Specialist Contractors,HRD,Alexander Mann Solutions,       82576,"2,362.70",Interim Staff
ECGD,ECGD,28 Jun 22,Agency - Specialist Contractors,HRD,Alexander Mann Solutions,       82576,"2,951.35",Interim Staff
ECGD,ECGD,28 Jun 22,Agency - Specialist Contractors,HRD,Alexander Mann Solutions,       82576,"2,951.35",Interim Staff
ECGD,ECGD,28 Jun 22,Agency - Specialist Contractors,HRD,Alexander Mann Solutions,       82576,"3,234.47",Interim Staff
ECGD,ECGD,28 Jun 22,Agency - Temporary Staff,HRD,Alexander Mann Solutions,       82576,558.38,Interim Staff
ECGD,ECGD,28 Jun 22,Agency - Temporary Staff,HRD,Alexander Mann Solutions,       82576,572.70,Interim Staff
ECGD,ECGD,28 Jun 22,Agency - Temporary Staff,HRD,Alexander Mann Solutions,       82576,663.38,Interim Staff
ECGD,ECGD,28 Jun 22,Agency - Temporary Staff,HRD,Alexander Mann Solutions,       82576,821.44,Interim Staff
ECGD,ECGD,28 Jun 22,IT Software Licensing & Subscription,ID,Fidelity National Info Services,       82581,"22,572.54",IT Systems
ECGD,ECGD,28 Jun 22,IT Software Licensing & Subscription,ID,Fidelity National Info Services,       82581,"72,232.10",IT Systems
ECGD,ECGD,28 Jun 22,IT Software Licensing & Subscription,ID,Fidelity National Info Services,       82582,"22,675.98",IT Systems
ECGD,ECGD,28 Jun 22,IT Software Licensing & Subscription,ID,Fidelity National Info Services,       82582,"72,563.13",IT Systems
ECGD,ECGD,28 Jun 22,Agency - Interim Managers,HRD,Alexander Mann Solutions,       82594,"2,100.20",Interim Staff
ECGD,ECGD,28 Jun 22,Agency - Interim Managers,HRD,Alexander Mann Solutions,       82594,"2,637.70",Interim Staff
ECGD,ECGD,28 Jun 22,Agency - Interim Managers,HRD,Alexander Mann Solutions,       82594,"3,336.30",Interim Staff
ECGD,ECGD,28 Jun 22,Agency - Specialist Contractors,HRD,Alexander Mann Solutions,       82594,846.92,Interim Staff
ECGD,ECGD,28 Jun 22,Agency - Specialist Contractors,HRD,Alexander Mann Solutions,       82594,962.40,Interim Staff
ECGD,ECGD,28 Jun 22,Agency - Specialist Contractors,HRD,Alexander Mann Solutions,       82594,"2,155.74",Interim Staff
ECGD,ECGD,28 Jun 22,Agency - Specialist Contractors,HRD,Alexander Mann Solutions,       82594,"2,362.70",Interim Staff
ECGD,ECGD,28 Jun 22,Agency - Specialist Contractors,HRD,Alexander Mann Solutions,       82594,"2,362.70",Interim Staff
ECGD,ECGD,28 Jun 22,Agency - Specialist Contractors,HRD,Alexander Mann Solutions,       82594,"2,874.32",Interim Staff
ECGD,ECGD,28 Jun 22,Agency - Specialist Contractors,HRD,Alexander Mann Solutions,       82594,"2,875.08",Interim Staff
ECGD,ECGD,28 Jun 22,Agency - Specialist Contractors,HRD,Alexander Mann Solutions,       82594,"2,887.75",Interim Staff
ECGD,ECGD,28 Jun 22,Agency - Specialist Contractors,HRD,Alexander Mann Solutions,       82594,"2,887.75",Interim Staff
ECGD,ECGD,28 Jun 22,Agency - Specialist Contractors,HRD,Alexander Mann Solutions,       82594,"2,951.35",Interim Staff
ECGD,ECGD,28 Jun 22,Agency - Specialist Contractors,HRD,Alexander Mann Solutions,       82594,"2,951.35",Interim Staff
ECGD,ECGD,28 Jun 22,Agency - Specialist Contractors,HRD,Alexander Mann Solutions,       82594,"2,951.35",Interim Staff
ECGD,ECGD,28 Jun 22,Agency - Specialist Contractors,HRD,Alexander Mann Solutions,       82594,"4,146.75",Interim Staff
ECGD,ECGD,28 Jun 22,Agency - Temporary Staff,HRD,Alexander Mann Solutions,       82594,625.20,Interim Staff
ECGD,ECGD,28 Jun 22,Agency - Temporary Staff,HRD,Alexander Mann Solutions,       82594,687.24,Interim Staff
ECGD,ECGD,28 Jun 22,Agency - Temporary Staff,HRD,Alexander Mann Solutions,       82594,687.24,Interim Staff
ECGD,ECGD,28 Jun 22,Agency - Temporary Staff,HRD,Alexander Mann Solutions,       82594,715.88,Interim Staff
ECGD,ECGD,28 Jun 22,Agency - Temporary Staff,HRD,Alexander Mann Solutions,       82594,805.12,Interim Staff
18 Jul 22,,,- 1 -,,,,,
